Workbook

Sheet Algus
B1: TEAVE SELLE MALLI KOHTA
B2: Selle malli abil saate luua ettevõtte alustamise finantsplaani.
B3: Finantsplaanist saate ülevaate töölehelt Ülevaade.
B4: Alustamiskulude malli ning kasumi ja kahjumi malli töölehtede abil saate pidada arvestust alustamiskulude ning kasumi ja kahjumi üle.
B5: Alustamiskulude ning kasumi ja kahjumi näidistöölehed sisaldavad tabelites näidisandmeid.
B6: Märkus.
B7: Kõigi töölehtede veerus A on toodud lisajuhised. See tekst on tahtlikult peidetud. Teksti eemaldamiseks valige veerg A ja seejärel käsk KUSTUTA. Teksti kuvamiseks valige veerg A ja muutke seejärel fondi värvi.
B8: Tabelite kohta lisateabe saamiseks vajutage tabelis tõstuklahvi (SHIFT) ja seejärel klahvi F10, valige suvand TABEL ja seejärel käsk ASETEKST.

Sheet Ülevaade
B1: ETTEVÕTTE ALUSTAMISE FINANTSPLAAN
B2: Finantsplaani loomine koondab kogu ettevõtte plaanimise. Kui olete välja selgitanud oma toote, sihtturu ja sihtkliendid koos hinnakirjaga, olete valmis alustama kulude, müügi ja kasumi prognoosimist. Need üksused koos teie oletustega aitavad teil müügieelarvet hinnata. Ettevõtte teine pool on see, millised kulud teil tekkida võivad. See on oluline jooksvalt, et näha, millal olete kasumlik. Ettevõtte alustamisel on oluline teada, milliseid kulusid peate enne klientidele müümist või sellest saadava raha laekumist finantseerima.
B3: Prognoositud alustamiskulud: Käivituskulude mall, mille leiate järgmiselt vahekaardilt, sisaldab tühja malli koos alustamisjuhistega. Järgmisel vahekaardil „Alustamiskulude näide“ on näide jooksvatest ja ühekordsetest kuluartiklitest, mida teil võib ettevõtte alustamiseks vaja minna. Paljusid ettevõtteid rahastatakse aja jooksul krediidist ja neil pole kohe sissetulevat rahavoogu. Oluline on prognoosida, millal hakkab raha ettevõttesse sisse tulema, oletades, mitme kuu jagu korduvaid artikleid tuleb lisaks ühekordsele kulule rahastada säästudest või algsest investeeringust.
B4: Prognoositava kasumi ja kahjumi mudel: Sellelt vahekaardilt, sildiga „Kasumi ja kahjumi mall“, leiate tühja malli müügiprognoosi ning kasumi ja kahjumi mudeli tegemiseks. Järgmisel vahekaardil („Kasumi ja kahjumi näide“) on toodud näiteks esimest 12 tegevuskuud prognoosiv väikeettevõte. Iga mudeli tabeli ülemine osa näitab prognoositavat müüki ja brutokasumit. See on hea koht müügiprognoosi koostamise alustamiseks. Allpool järgmises jaotises on loetletud korduvad väljaminekud, mida te samade kuude kohta kavandate. Need peaksid olema kooskõlas eelmises jaotises sisestatud hinnanguliste alustamiskuludega. Selle mudeli allservas näete, millal hakkate kasumit teenima ja millised kuluartiklid mõjutavad teie kasumlikkust kõige rohkem.
B5: Jälgige oma oletusi, mille olete teinud tulu ja müüdud kaupade kulu prognoosimisel. Veel mitte käivitunud ettevõtete puhul peaks teil olema ülevaade sellest, kuidas neid oma toote või teenuse jaoks prognoosida. Mõned prognoosimisjuhised on toodud allpool.
B6: Tulud: Alustuseks määratlege oma sihtturu puhul (potentsiaalsete klientide, ettevõtete või tarbijate rühm), kui suur osa neist oleks sihtturg esimesel aastal. Milline protsent sellest eeldatavasti sulgub? Milline on sihtturu keskmine tehing teie toote või teenuse ostmiseks? Kui palju saate teenida esimesel kuul, teisel kuul jne? Võiksite esimesel kuul alustada arvuga ja edasi suurendada seda teatud protsendi kaupa, näiteks 10%. Oletame näiteks, et müüte puhastusteenuseid oma linna väikeettevõtetele ja teie arvates on seda teenust vaja 500 ettevõttel. Kui keskmine leping on 250 eurot kuus, peate prognoosima, kui mitme ettevõttega saate sõlmida lepingu esimese aasta igas kuus.
B7: Müüdud kaupade kulu (COGS): Seda tuleks arvutada toodete ja mõne teenuse puhul. See on toote tootmisega kaasnev kulu. Näiteks kui müüte riideid, on COGS hind, mille te maksite riiete tootjale. Kui valmistate need ise, on see materjalide ja nende valmistamiseks tehtud töö maksumus. Teenuste puhul oleks see ühe arveldatava töötunni otsene tööjõukulu. Kõik, mis asub kasumi ja kahjumi lehel allpool brutokasumit, on üldise äritegevuse fikseeritud või üldkulud (nt rentimine, telefon või isegi turundus).

Sheet Alustamiskulude mall
B1: ALUSTAMISKULUD
B2: Teie kohvik | C2: =TODAY() -> 2022-01-18
B4: KULUARTIKLID | C4: KUUD | D4: KULU/KUU | E4: ÜHEKORDNE KULU | F4: KULUD KOKKU
B5: Reklaam/turundus | F5: =(C5*D5)+IF(E5>0,E5,0) -> 0 €
B6: Töötajate palgad | F6: =(C6*D6)+IF(E6>0,E6,0) -> 0 €
B7: Töötajate palgamaksud ja soodustused | F7: 0 €
B8: Rendi-/liisingumaksed/kommunaalkulud | F8: 0 €
B9: Posti-/saatekulud | F9: 0 €
B10: HINNANGULINE ALUSTAMISEELARVE | F10: =SUBTOTAL(109,Alustamine[KULUD KOKKU]) -> 0

Sheet Alustamiskulude näide
B1: ALUSTAMISKULUD
B2: ='Alustamiskulude mall'!B2 -> Teie kohvik | C2: =TODAY() -> 2022-01-18
B4: KULUARTIKLID | C4: KUUD | D4: KULU/KUU | E4: ÜHEKORDNE KULU | F4: KULUD KOKKU
B5: Reklaam/turundus | C5: 3 | D5: 300 € | E5: 2,000 € | F5: =(C5*D5)+IF(E5>0,E5,0) -> 2,900 €
B6: Töötajate palgad | C6: 4 | D6: 3,500 € | E6: 2 € | F6: =(C6*D6)+IF(E6>0,E6,0) -> 14,002 €
B7: Töötajate palgamaksud ja soodustused | C7: 4 | D7: 500 € | E7: 2,000 € | F7: 4,000 €
B8: Rendi-/liisingumaksed/kommunaalkulud | C8: 4 | D8: 750 € | E8: 3,000 € | F8: 6,000 €
B9: Posti-/saatekulud | C9: 1 | D9: 25 € | E9: 25 € | F9: 50 €
B10: HINNANGULINE ALUSTAMISEELARVE | F10: =SUM(F6:F9) -> 24,052 €

Sheet Kasumimall
B1: ALUSTAMISKULUD
B2: ='Alustamiskulude mall'!B2 -> Teie kohvik | C2: =TODAY() -> 2022-01-18
B4: TULUD | C4: JAAN | D4: VEEBR | E4: MÄRTS | F4: APR | G4: MAI | H4: JUUNI | I4: JUULI | J4: AUG | K4: SEPT | L4: OKT | M4: NOV | N4: DETS | O4: KOKKU
B5: Hinnanguline toodete müük | C5: 0 € | D5: 0 € | E5: 0 € | F5: 0 € | G5: 0 € | H5: 0 € | I5: 0 € | J5: 0 € | K5: 0 € | L5: 0 € | M5: 0 € | N5: 0 € | O5: =SUM(C5:N5) -> 0 €
B6: Vähemmüügi tagastused ja allahindlused | C6: 0 € | D6: 0 € | E6: 0 € | F6: 0 € | G6: 0 € | H6: 0 € | I6: 0 € | J6: 0 € | K6: 0 € | L6: 0 € | M6: 0 € | N6: 0 € | O6: =SUM(C6:N6) -> 0 €
B7: Teenusetulu | C7: 0 € | D7: 0 € | E7: 0 € | F7: 0 € | G7: 0 € | H7: 0 € | I7: 0 € | J7: 0 € | K7: 0 € | L7: 0 € | M7: 0 € | N7: 0 € | O7: 0 €
B8: Muu tulu | C8: 0 € | D8: 0 € | E8: 0 € | F8: 0 € | G8: 0 € | H8: 0 € | I8: 0 € | J8: 0 € | K8: 0 € | L8: 0 € | M8: 0 € | N8: 0 € | O8: 0 €
B9: Netomüük | C9: =SUBTOTAL(109,Tulunäited[JAAN]) -> 0 € | D9: =SUBTOTAL(109,Tulunäited[VEEBR]) -> 0 € | E9: =SUBTOTAL(109,Tulunäited[MÄRTS]) -> 0 € | F9: =SUBTOTAL(109,Tulunäited[APR]) -> 0 € | G9: =SUBTOTAL(109,Tulunäited[MAI]) -> 0 € | H9: =SUBTOTAL(109,Tulunäited[JUUNI]) -> 0 € | I9: =SUBTOTAL(109,Tulunäited[JUULI]) -> 0 € | J9: =SUBTOTAL(109,Tulunäited[AUG]) -> 0 € | K9: =SUBTOTAL(109,Tulunäited[SEPT]) -> 0 € | L9: =SUBTOTAL(109,Tulunäited[OKT]) -> 0 € | M9: =SUBTOTAL(109,Tulunäited[NOV]) -> 0 € | N9: =SUBTOTAL(109,Tulunäited[DETS]) -> 0 € | O9: =SUM(Tulunäited[[#Totals],[JAAN]:[DETS]]) -> 0 €
B10: Müüdud kaupade kulu | C10: =C5*0.4 -> 0 € | D10: 0 € | E10: 0 € | F10: 0 € | G10: 0 € | H10: 0 € | I10: 0 € | J10: 0 € | K10: 0 € | L10: 0 € | M10: 0 € | N10: 0 € | O10: 0 €
B11: Brutokasum | C11: =IFERROR(Tulunäited[[#Totals],[JAAN]]-C10,"") -> 0 € | D11: =IFERROR(Tulunäited[[#Totals],[VEEBR]]-D10,"") -> 0 € | E11: =IFERROR(Tulunäited[[#Totals],[MÄRTS]]-E10,"") -> 0 € | F11: =IFERROR(Tulunäited[[#Totals],[APR]]-F10,"") -> 0 € | G11: =IFERROR(Tulunäited[[#Totals],[MAI]]-G10,"") -> 0 € | H11: =IFERROR(Tulunäited[[#Totals],[JUUNI]]-H10,"") -> 0 € | I11: =IFERROR(Tulunäited[[#Totals],[JUULI]]-I10,"") -> 0 € | J11: =IFERROR(Tulunäited[[#Totals],[AUG]]-J10,"") -> 0 € | K11: =IFERROR(Tulunäited[[#Totals],[SEPT]]-K10,"") -> 0 € | L11: =IFERROR(Tulunäited[[#Totals],[OKT]]-L10,"") -> 0 € | M11: =IFERROR(Tulunäited[[#Totals],[NOV]]-M10,"") -> 0 € | N11: =IFERROR(Tulunäited[[#Totals],[DETS]]-N10,"") -> 0 € | O11: 0 €
B13: KULUD | C13: JAAN | D13: VEEBR | E13: MÄRTS | F13: APR | G13: MAI | H13: JUUNI | I13: JUULI | J13: AUG | K13: SEPT | L13: OKT | M13: NOV | N13: DETS | O13: KOKKU
B14: Palgad ja tasud | C14: 0 € | D14: 0 € | E14: 0 € | F14: 0 € | G14: 0 € | H14: 0 € | I14: 0 € | J14: 0 € | K14: 0 € | L14: 0 € | M14: 0 € | N14: 0 € | O14: =SUM(C14:N14) -> 0 €
B15: Turundus/reklaam | C15: 0 € | D15: 0 € | E15: 0 € | F15: 0 € | G15: 0 € | H15: 0 € | I15: 0 € | J15: 0 € | K15: 0 € | L15: 0 € | M15: 0 € | N15: 0 € | O15: =SUM(C15:N15) -> 0 €
B16: Vahendustasud | C16: 0 € | D16: 0 € | E16: 0 € | F16: 0 € | G16: 0 € | H16: 0 € | I16: 0 € | J16: 0 € | K16: 0 € | L16: 0 € | M16: 0 € | N16: 0 € | O16: 0 €
B17: Üür | C17: 0 € | D17: 0 € | E17: 0 € | F17: 0 € | G17: 0 € | H17: 0 € | I17: 0 € | J17: 0 € | K17: 0 € | L17: 0 € | M17: 0 € | N17: 0 € | O17: 0 €
B18: Muu 1 | C18: 0 € | D18: 0 € | E18: 0 € | F18: 0 € | G18: 0 € | H18: 0 € | I18: 0 € | J18: 0 € | K18: 0 € | L18: 0 € | M18: 0 € | N18: 0 € | O18: 0 €
B19: Kogukulu | C19: =IF(SUM(C14:C18)=0,"",SUM(C14:C18)) ->  | O19: =SUM(Väljaminekunäited[[#Totals],[JAAN]:[DETS]]) -> 0 €
B20: Tulud enne maksustamist | C20: =IFERROR(Kasumimall!$C$11-Väljaminekunäited[[#Totals],[JAAN]],"") ->  | D20: =IFERROR(Kasumimall!$C$11-Väljaminekunäited[[#Totals],[VEEBR]],"") ->  | E20: =IFERROR(Kasumimall!$C$11-Väljaminekunäited[[#Totals],[MÄRTS]],"") ->  | F20: =IFERROR(Kasumimall!$C$11-Väljaminekunäited[[#Totals],[APR]],"") ->  | G20: =IFERROR(Kasumimall!$C$11-Väljaminekunäited[[#Totals],[MAI]],"") ->  | H20: =IFERROR(Kasumimall!$C$11-Väljaminekunäited[[#Totals],[JUUNI]],"") ->  | I20: =IFERROR(Kasumimall!$C$11-Väljaminekunäited[[#Totals],[JUULI]],"") ->  | J20: =IFERROR(Kasumimall!$C$11-Väljaminekunäited[[#Totals],[AUG]],"") ->  | K20: =IFERROR(Kasumimall!$C$11-Väljaminekunäited[[#Totals],[SEPT]],"") ->  | L20: =IFERROR(Kasumimall!$C$11-Väljaminekunäited[[#Totals],[OKT]],"") ->  | M20: =IFERROR(Kasumimall!$C$11-Väljaminekunäited[[#Totals],[NOV]],"") ->  | N20: =IFERROR(Kasumimall!$C$11-Väljaminekunäited[[#Totals],[DETS]],"") ->  | O20: 0 €
B21: Tulumaksukulu | C21: =IFERROR(C20*0.15," ") ->  | D21: =IFERROR(D20*0.15," ") ->  | E21: =IFERROR(E20*0.15," ") ->  | O21: =SUM(Kasumimall!$C$21:$N$21) -> 0 €
B23: NETOTULU | C23: =IFERROR(C20-Kasumimall!$C$21,"") ->  | D23: =IFERROR(D20-Kasumimall!$D$21,"") ->  | E23: =IFERROR(E20-Kasumimall!$E$21,"") ->  | F23: =IFERROR(F20-Kasumimall!$F$21,"") ->  | G23: =IFERROR(G20-Kasumimall!$G$21,"") ->  | H23: =IFERROR(H20-Kasumimall!$H$21,"") ->  | I23: =IFERROR(I20-Kasumimall!$I$21,"") ->  | J23: =IFERROR(J20-Kasumimall!$J$21,"") ->  | K23: =IFERROR(K20-Kasumimall!$K$21,"") ->  | L23: =IFERROR(L20-Kasumimall!$L$21,"") ->  | M23: =IFERROR(M20-Kasumimall!$M$21,"") ->  | N23: =IFERROR(N20-Kasumimall!$N$21,"") ->  | O23: =IFERROR(O20-Kasumimall!$O$21,"") -> 0 €

Sheet Kasuminäide
B1: ALUSTAMISKULUD
B2: ='Alustamiskulude mall'!B2 -> Teie kohvik | C2: =TODAY() -> 2022-01-18
B4: TULUD | C4: JAAN | D4: VEEBR | E4: MÄRTS | F4: APR | G4: MAI | H4: JUUNI | I4: JUULI | J4: AUG | K4: SEPT | L4: OKT | M4: NOV | N4: DETS | O4: KOKKU
B5: Hinnanguline toodete müük | C5: 5,000 € | D5: 13,000 € | E5: 16,000 € | F5: 7,000 € | G5: 14,500 € | H5: 16,400 € | I5: 22,500 € | J5: 23,125 € | K5: 24,549 € | L5: 22,000 € | M5: 25,000 € | N5: 27,349 € | O5: =SUM(C5:N5) -> 216,423 €
B6: Vähemmüügi tagastused ja allahindlused | C6: 0 € | D6: -350 € | E6: 0 € | F6: -206 € | G6: -234 € | H6: 0 € | I6: 0 € | J6: -280 € | K6: -1,200 € | L6: -1,600 € | M6: 0 € | N6: -2,400 € | O6: =SUM(C6:N6) -> -6,270 €
B7: Teenusetulu | C7: 0 € | D7: 0 € | E7: 0 € | F7: 0 € | G7: 0 € | H7: 250 € | I7: 350 € | J7: 100 € | K7: 0 € | L7: 0 € | M7: 1,245 € | N7: 1,360 € | O7: 3,305 €
B8: Muu tulu | C8: 0 € | D8: 0 € | E8: 0 € | F8: 0 € | G8: 0 € | H8: 0 € | I8: 0 € | J8: 1,500 € | K8: 0 € | L8: 0 € | M8: 0 € | N8: 0 € | O8: 1,500 €
B9: Netomüük | C9: =SUBTOTAL(109,TegelikTulu[JAAN]) -> 5,000 € | D9: =SUBTOTAL(109,TegelikTulu[VEEBR]) -> 12,650 € | E9: =SUBTOTAL(109,TegelikTulu[MÄRTS]) -> 16,000 € | F9: =SUBTOTAL(109,TegelikTulu[APR]) -> 6,794 € | G9: =SUBTOTAL(109,TegelikTulu[MAI]) -> 14,266 € | H9: =SUBTOTAL(109,TegelikTulu[JUUNI]) -> 16,650 € | I9: =SUBTOTAL(109,TegelikTulu[JUULI]) -> 22,850 € | J9: =SUBTOTAL(109,TegelikTulu[AUG]) -> 24,445 € | K9: =SUBTOTAL(109,TegelikTulu[SEPT]) -> 23,349 € | L9: =SUBTOTAL(109,TegelikTulu[OKT]) -> 20,400 € | M9: =SUBTOTAL(109,TegelikTulu[NOV]) -> 26,245 € | N9: =SUBTOTAL(109,TegelikTulu[DETS]) -> 26,309 € | O9: =SUM(TegelikTulu[[#Totals],[JAAN]:[DETS]]) -> 214,958 €
B10: Müüdud kaupade kulu | C10: =C5*0.4 -> 2,000 € | D10: 5,200 € | E10: 6,400 € | F10: 2,800 € | G10: 5,800 € | H10: 6,560 € | I10: 9,000 € | J10: 9,250 € | K10: 9,820 € | L10: 8,800 € | M10: 10,000 € | N10: 10,940 € | O10: 86,569 €
B11: Brutokasum | C11: =IFERROR(TegelikTulu[[#Totals],[JAAN]]-C10,"") -> 3,000 € | D11: =IFERROR(TegelikTulu[[#Totals],[VEEBR]]-D10,"") -> 7,450 € | E11: =IFERROR(TegelikTulu[[#Totals],[MÄRTS]]-E10,"") -> 9,600 € | F11: =IFERROR(TegelikTulu[[#Totals],[APR]]-F10,"") -> 3,994 € | G11: =IFERROR(TegelikTulu[[#Totals],[MAI]]-G10,"") -> 8,466 € | H11: =IFERROR(TegelikTulu[[#Totals],[JUUNI]]-H10,"") -> 10,090 € | I11: =IFERROR(TegelikTulu[[#Totals],[JUULI]]-I10,"") -> 13,850 € | J11: =IFERROR(TegelikTulu[[#Totals],[AUG]]-J10,"") -> 15,195 € | K11: =IFERROR(TegelikTulu[[#Totals],[SEPT]]-K10,"") -> 13,529 € | L11: =IFERROR(TegelikTulu[[#Totals],[OKT]]-L10,"") -> 11,600 € | M11: =IFERROR(TegelikTulu[[#Totals],[NOV]]-M10,"") -> 16,245 € | N11: =IFERROR(TegelikTulu[[#Totals],[DETS]]-N10,"") -> 15,369 € | O11: 128,389 €
B13: KULUD | C13: JAAN | D13: VEEBR | E13: MÄRTS | F13: APR | G13: MAI | H13: JUUNI | I13: JUULI | J13: AUG | K13: SEPT | L13: OKT | M13: NOV | N13: DETS | O13: KOKKU
B14: Palgad ja tasud | C14: 2,500 € | D14: 2,500 € | E14: 3,500 € | F14: 5,000 € | G14: 5,000 € | H14: 5,000 € | I14: 8,000 € | J14: 9,000 € | K14: 9,000 € | L14: 9,000 € | M14: 9,000 € | N14: 9,000 € | O14: =SUM(C14:N14) -> 76,500 €
B15: Turundus/reklaam | C15: 400 € | D15: 450 € | E15: 450 € | F15: 450 € | G15: 900 € | H15: 900 € | I15: 900 € | J15: 900 € | K15: 900 € | L15: 900 € | M15: 1,200 € | N15: 1,200 € | O15: =SUM(C15:N15) -> 9,550 €
B16: Vahendustasud | C16: 250 € | D16: 650 € | E16: 800 € | F16: 350 € | G16: 725 € | H16: 820 € | I16: 1,125 € | J16: 1,156 € | K16: 1,227 € | L16: 1,100 € | M16: 1,250 € | N16: 1,367 € | O16: 10,821 €
B17: Üür | C17: 1,250 € | D17: 1,250 € | E17: 1,250 € | F17: 1,250 € | G17: 1,250 € | H17: 1,250 € | I17: 1,250 € | J17: 1,250 € | K17: 1,250 € | L17: 1,250 € | M17: 1,250 € | N17: 1,250 € | O17: 15,000 €
B18: Kogukulu | C18: =IF(SUM(C14:C17)=0,"",SUM(C14:C17)) -> 4,400 € | D18: 4,850 € | E18: 6,000 € | F18: 7,050 € | G18: 7,875 € | H18: 7,970 € | I18: 11,275 € | J18: 12,306 € | K18: 12,377 € | L18: 12,250 € | M18: 12,700 € | N18: 12,817 € | O18: =SUM(TegelikudVäljaminekud[[#Totals],[JAAN]:[DETS]]) -> 111,871 €
B19: Tulud enne maksustamist | C19: =IFERROR(Kasuminäide!$C$11-TegelikudVäljaminekud[[#Totals],[JAAN]],"") -> -1,400 € | D19: =IFERROR(Kasuminäide!$D$11-TegelikudVäljaminekud[[#Totals],[VEEBR]],"") -> 2,600 € | E19: =IFERROR(Kasuminäide!$E$11-TegelikudVäljaminekud[[#Totals],[MÄRTS]],"") -> 3,600 € | F19: =IFERROR(Kasuminäide!$F$11-TegelikudVäljaminekud[[#Totals],[APR]],"") -> -3,056 € | G19: =IFERROR(Kasuminäide!$G$11-TegelikudVäljaminekud[[#Totals],[MAI]],"") -> 591 € | H19: =IFERROR(Kasuminäide!$H$11-TegelikudVäljaminekud[[#Totals],[JUUNI]],"") -> 2,120 € | I19: =IFERROR(Kasuminäide!$I$11-TegelikudVäljaminekud[[#Totals],[JUULI]],"") -> 2,575 € | J19: =IFERROR(Kasuminäide!$J$11-TegelikudVäljaminekud[[#Totals],[AUG]],"") -> 2,889 € | K19: =IFERROR(Kasuminäide!$K$11-TegelikudVäljaminekud[[#Totals],[SEPT]],"") -> 1,152 € | L19: =IFERROR(Kasuminäide!$L$11-TegelikudVäljaminekud[[#Totals],[OKT]],"") -> -650 € | M19: =IFERROR(Kasuminäide!$M$11-TegelikudVäljaminekud[[#Totals],[NOV]],"") -> 3,545 € | N19: =IFERROR(Kasuminäide!$N$11-TegelikudVäljaminekud[[#Totals],[DETS]],"") -> 2,552 € | O19: =SUM(C19:N19) -> 16,518 €
B20: Tulumaksukulu | C20: =C19*0.15 -> -210 € | D20: 390 € | E20: =E19*0.15 -> 540 € | F20: =F19*0.15 -> -458 € | G20: =G19*0.15 -> 89 € | H20: =H19*0.15 -> 318 € | I20: =I19*0.15 -> 386 € | J20: =J19*0.15 -> 433 € | K20: =K19*0.15 -> 173 € | L20: =L19*0.15 -> -98 € | M20: =M19*0.15 -> 532 € | N20: =N19*0.15 -> 383 € | O20: =SUM(Kasuminäide!$C$20:$N$20) -> 2,478 €
B22: NETOTULU | C22: =IFERROR(C19-Kasuminäide!$C$20," ") -> -1,190 € | D22: =IFERROR(D19-Kasuminäide!$D$20," ") -> 2,210 € | E22: =IFERROR(E19-Kasuminäide!$E$20,"") -> 3,060 € | F22: =IFERROR(F19-Kasuminäide!$F$20,"") -> -2,598 € | G22: =IFERROR(G19-Kasuminäide!$G$20,"") -> 502 € | H22: =IFERROR(H19-Kasuminäide!$H$20,"") -> 1,802 € | I22: =IFERROR(I19-Kasuminäide!$I$20,"") -> 2,189 € | J22: =IFERROR(J19-Kasuminäide!$J$20,"") -> 2,455 € | K22: =IFERROR(K19-Kasuminäide!$K$20,"") -> 979 € | L22: =IFERROR(L19-Kasuminäide!$L$20,"") -> -553 € | M22: =IFERROR(M19-Kasuminäide!$M$20,"") -> 3,013 € | N22: =IFERROR(N19-Kasuminäide!$N$20,"") -> 2,169 € | O22: =IFERROR(O19-Kasuminäide!$O$20,"") -> 14,040 €
